[Event "*** SCC Grand Prix: Titled Tuesday Blitz"]
[Site "Chess.com"]
[Date "2020.09.29"]
[Round "5"]
[White "JoliyRoger"]
[Black "Leo_C"]
[Result "1-0"]
[WhiteElo "2434"]
[BlackElo "2268"]
[TimeControl "180+1"]
[EndTime "10:52:18 PDT"]
[Termination "JoliyRoger won by resignation"]

1. Nf3 {[%clk 0:03:00.9]} 1... d5 {[%clk 0:02:58.4]} 2. c4 {[%clk 0:03:00.7]}
2... e6 {[%clk 0:02:54.3]} 3. cxd5 {[%clk 0:03:00.9]} 3... exd5 {[%clk
0:02:50.7]} 4. d4 {[%clk 0:03:01.8]} 4... Nf6 {[%clk 0:02:49.1]} 5. Nc3 {[%clk
0:03:01.5]} 5... c6 {[%clk 0:02:47.3]} 6. Bg5 {[%clk 0:03:01.7]} 6... Bf5 {[%clk
0:02:42.1]} 7. e3 {[%clk 0:03:01.2]} 7... h6 {[%clk 0:02:40.9]} 8. Bh4 {[%clk
0:02:58.9]} 8... Nbd7 {[%clk 0:02:41]} 9. Bg3 {[%clk 0:02:54.7]} 9... Qb6 {[%clk
0:02:36.9]} 10. Qc1 {[%clk 0:02:53.5]} 10... Be7 {[%clk 0:02:32.4]} 11. Be2
{[%clk 0:02:52.8]} 11... O-O {[%clk 0:02:31.2]} 12. O-O {[%clk 0:02:53.3]} 12...
Rac8 {[%clk 0:02:25.7]} 13. Rd1 {[%clk 0:02:44.7]} 13... Rfd8 {[%clk 0:02:23.3]}
14. a3 {[%clk 0:02:42.6]} 14... c5 {[%clk 0:02:19.9]} 15. Na4 {[%clk 0:02:25.7]}
15... Qa5 {[%clk 0:02:10]} 16. Nxc5 {[%clk 0:02:19.7]} 16... Nxc5 {[%clk
0:02:06.6]} 17. b4 {[%clk 0:02:19.8]} 17... Qa4 {[%clk 0:01:32.4]} 18. dxc5
{[%clk 0:01:55.2]} 18... b6 {[%clk 0:01:30.5]} 19. Nd4 {[%clk 0:01:43.9]} 19...
Bh7 {[%clk 0:01:18.9]} 20. Bb5 {[%clk 0:01:36.3]} 20... Qxd1+ {[%clk 0:01:04.6]}
21. Qxd1 {[%clk 0:01:34.8]} 21... bxc5 {[%clk 0:01:03.8]} 22. Nc6 {[%clk
0:01:33.4]} 1-0

[Event "*** SCC Grand Prix: Titled Tuesday Blitz"]
[Site "Chess.com"]
[Date "2020.09.29"]
[Round "5"]
[White "monalize"]
[Black "chegueps"]
[Result "0-1"]
[WhiteElo "2300"]
[BlackElo "2467"]
[TimeControl "180+1"]
[EndTime "10:52:23 PDT"]
[Termination "chegueps won by resignation"]

1. e4 {[%clk 0:03:00.9]} 1... e6 {[%clk 0:02:53.2]} 2. d4 {[%clk 0:02:59.4]}
2... d5 {[%clk 0:02:47.7]} 3. Nd2 {[%clk 0:02:59.6]} 3... c5 {[%clk 0:02:43.2]}
4. exd5 {[%clk 0:02:56.5]} 4... Qxd5 {[%clk 0:02:44.1]} 5. Ngf3 {[%clk 0:02:55]}
5... cxd4 {[%clk 0:02:43.9]} 6. Bc4 {[%clk 0:02:54]} 6... Qd6 {[%clk 0:02:44]}
7. O-O {[%clk 0:02:53.1]} 7... Nf6 {[%clk 0:02:44.3]} 8. Nb3 {[%clk 0:02:51.3]}
8... Nc6 {[%clk 0:02:44.4]} 9. Nbxd4 {[%clk 0:02:47.3]} 9... Nxd4 {[%clk
0:02:45.3]} 10. Nxd4 {[%clk 0:02:46.9]} 10... Be7 {[%clk 0:02:45.5]} 11. b3
{[%clk 0:02:26.4]} 11... O-O {[%clk 0:02:39.2]} 12. Bb2 {[%clk 0:02:21.6]} 12...
a6 {[%clk 0:02:38.9]} 13. a4 {[%clk 0:02:20.3]} 13... Qc7 {[%clk 0:02:35]} 14.
Qf3 {[%clk 0:02:10.7]} 14... Bd7 {[%clk 0:02:30.3]} 15. a5 {[%clk 0:02:04]}
15... Rfd8 {[%clk 0:02:18.4]} 16. Rfd1 {[%clk 0:01:40.9]} 16... Rac8 {[%clk
0:02:08.8]} 17. Qh3 {[%clk 0:01:22.3]} 17... h6 {[%clk 0:02:03.6]} 18. Nf3
{[%clk 0:01:12.3]} 18... Bc6 {[%clk 0:02:01.6]} 19. Be5 {[%clk 0:01:04.9]} 19...
Rxd1+ {[%clk 0:01:58.1]} 20. Rxd1 {[%clk 0:01:02.8]} 20... Qxa5 {[%clk 0:01:59]}
21. Bxf6 {[%clk 0:00:51.3]} 21... Bxf6 {[%clk 0:01:55.1]} 22. Bxe6 {[%clk
0:00:51]} 22... Rd8 {[%clk 0:01:53]} 23. Bc4 {[%clk 0:00:47.6]} 23... Rxd1+
{[%clk 0:01:51.7]} 0-1

[Event "*** SCC Grand Prix: Titled Tuesday Blitz"]
[Site "Chess.com"]
[Date "2020.09.29"]
[Round "5"]
[White "jefferyx"]
[Black "liczner"]
[Result "1-0"]
[WhiteElo "2947"]
[BlackElo "2668"]
[TimeControl "180+1"]
[EndTime "10:52:45 PDT"]
[Termination "jefferyx won by checkmate"]

1. e4 {[%clk 0:02:49.9]} 1... c6 {[%clk 0:02:58.6]} 2. d4 {[%clk 0:02:49.2]}
2... d5 {[%clk 0:02:59.5]} 3. f3 {[%clk 0:02:50.1]} 3... dxe4 {[%clk 0:02:59]}
4. fxe4 {[%clk 0:02:51]} 4... e5 {[%clk 0:02:59.3]} 5. Nf3 {[%clk 0:02:50.8]}
5... Bg4 {[%clk 0:02:59.6]} 6. Bc4 {[%clk 0:02:51.5]} 6... Nd7 {[%clk
0:02:59.7]} 7. c3 {[%clk 0:02:52.2]} 7... Bh5 {[%clk 0:02:56.3]} 8. O-O {[%clk
0:02:51.3]} 8... Ngf6 {[%clk 0:02:54.2]} 9. Bg5 {[%clk 0:02:51.4]} 9... Bd6
{[%clk 0:02:51]} 10. Nbd2 {[%clk 0:02:51.4]} 10... Qc7 {[%clk 0:02:48.5]} 11.
Qe1 {[%clk 0:02:50.8]} 11... O-O {[%clk 0:02:36.9]} 12. Kh1 {[%clk 0:02:43.9]}
12... Rae8 {[%clk 0:02:29.1]} 13. Nh4 {[%clk 0:02:39.3]} 13... exd4 {[%clk
0:01:41.1]} 14. cxd4 {[%clk 0:02:40.2]} 14... Bxh2 {[%clk 0:01:41]} 15. Nf5
{[%clk 0:02:40.6]} 15... Bg6 {[%clk 0:01:17.1]} 16. Qh4 {[%clk 0:02:40]} 16...
Bxf5 {[%clk 0:00:59.1]} 17. Rxf5 {[%clk 0:02:40.9]} 17... Bg3 {[%clk 0:00:59.5]}
18. Qh3 {[%clk 0:02:41.5]} 18... Nxe4 {[%clk 0:00:50]} 19. Nxe4 {[%clk
0:02:42.4]} 19... Rxe4 {[%clk 0:00:50.1]} 20. Raf1 {[%clk 0:02:27.4]} 20... Nb6
{[%clk 0:00:34.7]} 21. Bd3 {[%clk 0:02:06.4]} 21... Rxd4 {[%clk 0:00:34.4]} 22.
Rxf7 {[%clk 0:02:05.2]} 22... Rxf7 {[%clk 0:00:04.6]} 23. Qxh7+ {[%clk
0:02:04.3]} 23... Kf8 {[%clk 0:00:05]} 24. Qh8# {[%clk 0:02:05.2]} 1-0

[Event "*** SCC Grand Prix: Titled Tuesday Blitz"]
[Site "Chess.com"]
[Date "2020.09.29"]
[Round "5"]
[White "SharapovEvgeny"]
[Black "josorio78"]
[Result "1-0"]
[WhiteElo "2477"]
[BlackElo "2323"]
[TimeControl "180+1"]
[EndTime "10:52:47 PDT"]
[Termination "SharapovEvgeny won by resignation"]

1. c4 {[%clk 0:02:59.4]} 1... d6 {[%clk 0:02:45.1]} 2. Nc3 {[%clk 0:02:57.6]}
2... g6 {[%clk 0:02:44.4]} 3. g3 {[%clk 0:02:57.4]} 3... Bg7 {[%clk 0:02:30]} 4.
Bg2 {[%clk 0:02:56.9]} 4... e5 {[%clk 0:02:28.2]} 5. e3 {[%clk 0:02:56.3]} 5...
Nc6 {[%clk 0:02:27.5]} 6. Nge2 {[%clk 0:02:56]} 6... Be6 {[%clk 0:02:25]} 7. Nd5
{[%clk 0:02:54.9]} 7... Nce7 {[%clk 0:02:22.3]} 8. d4 {[%clk 0:02:48.3]} 8... c6
{[%clk 0:02:20.5]} 9. Nxe7 {[%clk 0:02:46.7]} 9... Nxe7 {[%clk 0:02:20.9]} 10.
d5 {[%clk 0:02:44]} 10... cxd5 {[%clk 0:02:20.9]} 11. cxd5 {[%clk 0:02:43.4]}
11... Bd7 {[%clk 0:02:21.3]} 12. O-O {[%clk 0:02:41.7]} 12... O-O {[%clk
0:02:21.3]} 13. Nc3 {[%clk 0:02:35.1]} 13... f5 {[%clk 0:02:20.8]} 14. Bd2
{[%clk 0:02:32]} 14... g5 {[%clk 0:02:15]} 15. f4 {[%clk 0:02:25.6]} 15... Ng6
{[%clk 0:02:14.7]} 16. Kh1 {[%clk 0:02:17.5]} 16... gxf4 {[%clk 0:02:05.8]} 17.
exf4 {[%clk 0:02:16.8]} 17... e4 {[%clk 0:02:05.4]} 18. Be3 {[%clk 0:02:13.3]}
18... a6 {[%clk 0:01:48.5]} 19. a4 {[%clk 0:02:11.7]} 19... Rc8 {[%clk 0:01:48]}
20. Qb3 {[%clk 0:02:10]} 20... h5 {[%clk 0:01:34.5]} 21. Qxb7 {[%clk 0:02:02]}
21... Rb8 {[%clk 0:01:34.4]} 22. Qxa6 {[%clk 0:02:01.4]} 22... Rxb2 {[%clk
0:01:34.4]} 23. Qxd6 {[%clk 0:01:45.9]} 23... Bxc3 {[%clk 0:01:32.2]} 24. Qxg6+
{[%clk 0:01:44.9]} 24... Bg7 {[%clk 0:01:32.6]} 25. Bd4 {[%clk 0:01:38.8]} 25...
Rf6 {[%clk 0:01:02.9]} 26. Bxf6 {[%clk 0:01:35.8]} 26... Qxf6 {[%clk 0:01:02.9]}
27. Qxf6 {[%clk 0:01:35.8]} 27... Bxf6 {[%clk 0:01:03.8]} 28. a5 {[%clk
0:01:33.8]} 1-0

[Event "*** SCC Grand Prix: Titled Tuesday Blitz"]
[Site "Chess.com"]
[Date "2020.09.29"]
[Round "5"]
[White "crazy_but_lazy"]
[Black "ClydeHillKid"]
[Result "1-0"]
[WhiteElo "2541"]
[BlackElo "2372"]
[TimeControl "180+1"]
[EndTime "10:52:54 PDT"]
[Termination "crazy_but_lazy won by resignation"]

1. e4 {[%clk 0:03:00.9]} 1... e6 {[%clk 0:03:00.2]} 2. d4 {[%clk 0:02:58.9]}
2... d5 {[%clk 0:03:00.2]} 3. Nc3 {[%clk 0:02:56.9]} 3... Nf6 {[%clk 0:03:00.4]}
4. e5 {[%clk 0:02:57]} 4... Nfd7 {[%clk 0:03:00.4]} 5. f4 {[%clk 0:02:57.6]}
5... c5 {[%clk 0:03:00.4]} 6. Nf3 {[%clk 0:02:58.3]} 6... Nc6 {[%clk 0:03:00.4]}
7. Be3 {[%clk 0:02:58.8]} 7... a6 {[%clk 0:03:00.3]} 8. Qd2 {[%clk 0:02:56.4]}
8... b5 {[%clk 0:03:00.5]} 9. Qf2 {[%clk 0:02:45.9]} 9... Qb6 {[%clk 0:02:57.1]}
10. Be2 {[%clk 0:02:42.4]} 10... cxd4 {[%clk 0:02:55.5]} 11. Nxd4 {[%clk
0:02:42.4]} 11... Bc5 {[%clk 0:02:55.6]} 12. Rd1 {[%clk 0:02:40.6]} 12... Bb7
{[%clk 0:02:43.1]} 13. Bf3 {[%clk 0:02:34.5]} 13... Nxd4 {[%clk 0:02:38.6]} 14.
Bxd4 {[%clk 0:02:34.1]} 14... Bxd4 {[%clk 0:02:38.1]} 15. Rxd4 {[%clk 0:02:32]}
15... Rc8 {[%clk 0:02:35.7]} 16. O-O {[%clk 0:02:28]} 16... O-O {[%clk 0:02:26]}
17. Rfd1 {[%clk 0:02:15.6]} 17... Bc6 {[%clk 0:02:17]} 18. Ne2 {[%clk
0:02:02.2]} 18... Ba8 {[%clk 0:02:07.1]} 19. c3 {[%clk 0:01:58.7]} 19... a5
{[%clk 0:02:01.5]} 20. a3 {[%clk 0:01:58.4]} 20... Nb8 {[%clk 0:01:58.3]} 21. f5
{[%clk 0:01:55.9]} 21... Nc6 {[%clk 0:01:56.6]} 22. f6 {[%clk 0:01:50.5]} 22...
Nxe5 {[%clk 0:01:48.9]} 23. fxg7 {[%clk 0:01:49.2]} 23... Kxg7 {[%clk
0:01:44.2]} 24. Rg4+ {[%clk 0:01:47.2]} 24... Nxg4 {[%clk 0:01:43.2]} 25. Qxb6
{[%clk 0:01:47.3]} 25... Ne5 {[%clk 0:01:39]} 26. Nf4 {[%clk 0:01:43.2]} 26...
Rc4 {[%clk 0:01:21]} 27. Qe3 {[%clk 0:01:35]} 27... Rg8 {[%clk 0:01:16]} 28.
Nh5+ {[%clk 0:01:32.9]} 28... Kf8 {[%clk 0:01:10.2]} 29. Qxe5 {[%clk 0:01:32.2]}
29... Ke7 {[%clk 0:01:08]} 30. Bxd5 {[%clk 0:01:23.2]} 30... Bxd5 {[%clk
0:01:05.5]} 31. Rxd5 {[%clk 0:01:22.3]} 31... Rc6 {[%clk 0:01:04.4]} 32. Qf6+
{[%clk 0:01:16.3]} 1-0

[Event "*** SCC Grand Prix: Titled Tuesday Blitz"]
[Site "Chess.com"]
[Date "2020.09.29"]
[Round "5"]
[White "Indianlad"]
[Black "DenLaz"]
[Result "1/2-1/2"]
[WhiteElo "2938"]
[BlackElo "2818"]
[TimeControl "180+1"]
[EndTime "10:52:55 PDT"]
[Termination "Game drawn by agreement"]

1. c4 {[%clk 0:03:00.9]} 1... c6 {[%clk 0:02:58.9]} 2. g3 {[%clk 0:03:00.7]}
2... d5 {[%clk 0:02:59.1]} 3. Nf3 {[%clk 0:03:01.3]} 3... Nf6 {[%clk 0:02:59.4]}
4. Bg2 {[%clk 0:03:01.1]} 4... Bf5 {[%clk 0:02:57.4]} 5. Qb3 {[%clk 0:02:58.5]}
5... Qb6 {[%clk 0:02:54.4]} 6. d3 {[%clk 0:02:58.8]} 6... e6 {[%clk 0:02:52.2]}
7. Be3 {[%clk 0:02:58.5]} 7... Qxb3 {[%clk 0:02:52.4]} 8. axb3 {[%clk
0:02:59.4]} 8... a6 {[%clk 0:02:53.1]} 9. Nc3 {[%clk 0:02:59.6]} 9... h6 {[%clk
0:02:52.4]} 10. O-O {[%clk 0:02:57.4]} 10... Nbd7 {[%clk 0:02:51.4]} 11. Nd4
{[%clk 0:02:56.3]} 11... Bh7 {[%clk 0:02:50.3]} 12. cxd5 {[%clk 0:02:56]} 12...
exd5 {[%clk 0:02:47.8]} 13. Nc2 {[%clk 0:02:54.3]} 13... Be7 {[%clk 0:02:34.9]}
14. b4 {[%clk 0:02:54.3]} 14... O-O {[%clk 0:02:33.7]} 15. Na4 {[%clk
0:02:52.6]} 15... Rfe8 {[%clk 0:02:32.8]} 16. Bd4 {[%clk 0:02:52.6]} 16... Nf8
{[%clk 0:02:28.6]} 17. Nc5 {[%clk 0:02:48.7]} 17... Bxc5 {[%clk 0:02:25.9]} 18.
bxc5 {[%clk 0:02:45.3]} 18... Rxe2 {[%clk 0:02:24.4]} 19. Ne3 {[%clk 0:02:45.9]}
19... Ne6 {[%clk 0:02:11.7]} 20. Bxf6 {[%clk 0:02:46.1]} 20... gxf6 {[%clk
0:02:12.6]} 21. b4 {[%clk 0:02:46.8]} 21... Bxd3 {[%clk 0:02:06.2]} 22. Rfd1
{[%clk 0:02:47.4]} 22... Bg6 {[%clk 0:02:06.2]} 23. b5 {[%clk 0:02:07.8]} 23...
Nxc5 {[%clk 0:01:55.1]} 24. bxc6 {[%clk 0:02:07.7]} 24... bxc6 {[%clk 0:01:55]}
25. Rac1 {[%clk 0:02:08.4]} 25... Nd3 {[%clk 0:01:18]} 26. Rxc6 {[%clk
0:02:08.8]} 26... Nxf2 {[%clk 0:01:17.4]} 27. Ra1 {[%clk 0:02:09.3]} 27... Rxe3
{[%clk 0:00:55.7]} 28. Kxf2 {[%clk 0:02:08.9]} 28... Re6 {[%clk 0:00:55.5]} 29.
Bxd5 {[%clk 0:02:08.7]} 29... Rxc6 {[%clk 0:00:55.5]} 30. Bxc6 {[%clk
0:02:09.6]} 30... Ra7 {[%clk 0:00:56.2]} 31. Ra5 {[%clk 0:02:09.7]} 31... Kf8
{[%clk 0:00:55.5]} 32. Bb5 {[%clk 0:02:07]} 32... Rb7 {[%clk 0:00:50.7]} 33.
Bxa6 {[%clk 0:02:07.3]} 33... Rb2+ {[%clk 0:00:51.2]} 34. Kg1 {[%clk 0:02:06.3]}
34... Be4 {[%clk 0:00:51.3]} 35. Bf1 {[%clk 0:02:06.5]} 35... f5 {[%clk
0:00:50.7]} 36. Bh3 {[%clk 0:02:05.1]} 1/2-1/2

[Event "*** SCC Grand Prix: Titled Tuesday Blitz"]
[Site "Chess.com"]
[Date "2020.09.29"]
[Round "5"]
[White "Brave_spirit12"]
[Black "Aygehovit1992"]
[Result "0-1"]
[WhiteElo "2453"]
[BlackElo "2647"]
[TimeControl "180+1"]
[EndTime "10:53:01 PDT"]
[Termination "Aygehovit1992 won on time"]

1. e4 {[%clk 0:02:58.9]} 1... d6 {[%clk 0:03:00.9]} 2. d4 {[%clk 0:02:58.8]}
2... Nf6 {[%clk 0:03:01.8]} 3. Nc3 {[%clk 0:02:58.5]} 3... a6 {[%clk 0:03:02.3]}
4. Bf4 {[%clk 0:02:58.5]} 4... b5 {[%clk 0:03:02.3]} 5. a3 {[%clk 0:02:58.7]}
5... Bb7 {[%clk 0:03:02.5]} 6. f3 {[%clk 0:02:59.1]} 6... Nbd7 {[%clk 0:03:01]}
7. e5 {[%clk 0:02:57.5]} 7... dxe5 {[%clk 0:03:00.4]} 8. dxe5 {[%clk 0:02:58.4]}
8... Nh5 {[%clk 0:03:00.8]} 9. Qd2 {[%clk 0:02:09.1]} 9... Nxf4 {[%clk
0:03:00.3]} 10. Qxf4 {[%clk 0:02:10]} 10... e6 {[%clk 0:03:01]} 11. Rd1 {[%clk
0:02:07.2]} 11... Qb8 {[%clk 0:02:50.8]} 12. Ne4 {[%clk 0:01:23.2]} 12... Bxe4
{[%clk 0:02:47.6]} 13. fxe4 {[%clk 0:01:20.9]} 13... c6 {[%clk 0:02:40.3]} 14.
Nf3 {[%clk 0:01:20.6]} 14... Ra7 {[%clk 0:02:36.5]} 15. Be2 {[%clk 0:01:15.8]}
15... Bc5 {[%clk 0:02:34.9]} 16. b4 {[%clk 0:01:14.5]} 16... Bb6 {[%clk
0:02:34.7]} 17. c4 {[%clk 0:01:14.8]} 17... bxc4 {[%clk 0:02:34.7]} 18. Bxc4
{[%clk 0:01:15.7]} 18... O-O {[%clk 0:02:34.2]} 19. Rd6 {[%clk 0:01:06.3]} 19...
a5 {[%clk 0:02:32.3]} 20. b5 {[%clk 0:00:44.2]} 20... cxb5 {[%clk 0:02:27.2]}
21. Bxb5 {[%clk 0:00:45.1]} 21... Nxe5 {[%clk 0:02:26.8]} 22. Qxe5 {[%clk
0:00:13.7]} 22... Bc7 {[%clk 0:02:25.9]} 23. Qb2 {[%clk 0:00:12.2]} 23... Bxd6
{[%clk 0:02:24.5]} 24. O-O {[%clk 0:00:12.6]} 24... a4 {[%clk 0:02:24.2]} 25. e5
{[%clk 0:00:10.5]} 25... Bxa3 {[%clk 0:02:22.8]} 26. Qxa3 {[%clk 0:00:09.3]}
26... Qxb5 {[%clk 0:02:23.2]} 27. Rd1 {[%clk 0:00:09.4]} 27... Qb3 {[%clk
0:02:21.9]} 28. Qd6 {[%clk 0:00:06.5]} 28... a3 {[%clk 0:02:18.9]} 29. Qd4
{[%clk 0:00:03.8]} 29... Ra4 {[%clk 0:02:17.1]} 30. Qa1 {[%clk 0:00:02.5]} 30...
a2 {[%clk 0:02:17]} 31. Nd4 {[%clk 0:00:02.4]} 31... Qxd1+ {[%clk 0:02:16.5]}
0-1

[Event "*** SCC Grand Prix: Titled Tuesday Blitz"]
[Site "Chess.com"]
[Date "2020.09.29"]
[Round "5"]
[White "ChelsieMonica"]
[Black "KingCrusher275"]
[Result "0-1"]
[WhiteElo "2374"]
[BlackElo "2552"]
[TimeControl "180+1"]
[EndTime "10:53:10 PDT"]
[Termination "KingCrusher275 won by resignation"]

1. e4 {[%clk 0:03:00.9]} 1... c5 {[%clk 0:02:59.9]} 2. Nf3 {[%clk 0:03:00.6]}
2... e6 {[%clk 0:03:00.4]} 3. d4 {[%clk 0:03:00]} 3... cxd4 {[%clk 0:03:01.3]}
4. Nxd4 {[%clk 0:03:00.9]} 4... Nc6 {[%clk 0:03:01.9]} 5. Nc3 {[%clk 0:02:59.5]}
5... Qc7 {[%clk 0:03:02.3]} 6. Nxc6 {[%clk 0:02:59.7]} 6... bxc6 {[%clk
0:03:03.2]} 7. Bd3 {[%clk 0:02:59.9]} 7... d5 {[%clk 0:03:03.2]} 8. O-O {[%clk
0:03:00.8]} 8... Nf6 {[%clk 0:03:02.5]} 9. Re1 {[%clk 0:03:00.3]} 9... Be7
{[%clk 0:03:03]} 10. exd5 {[%clk 0:02:59.6]} 10... cxd5 {[%clk 0:03:03.1]} 11.
Bb5+ {[%clk 0:02:57.1]} 11... Bd7 {[%clk 0:03:03]} 12. Bxd7+ {[%clk 0:02:56.6]}
12... Qxd7 {[%clk 0:03:03.9]} 13. Bg5 {[%clk 0:02:52.6]} 13... O-O {[%clk
0:03:03.8]} 14. Qf3 {[%clk 0:02:52.8]} 14... Rab8 {[%clk 0:03:02.9]} 15. b3
{[%clk 0:02:51.5]} 15... Rfc8 {[%clk 0:03:03]} 16. Rad1 {[%clk 0:02:49.2]} 16...
h6 {[%clk 0:03:01.9]} 17. Bf4 {[%clk 0:02:41.7]} 17... Rb6 {[%clk 0:02:54.8]}
18. Be5 {[%clk 0:02:30]} 18... Rbc6 {[%clk 0:02:51.7]} 19. Re2 {[%clk
0:02:30.2]} 19... Qb7 {[%clk 0:02:48.8]} 20. Bd4 {[%clk 0:02:12.2]} 20... Qb4
{[%clk 0:02:46.8]} 21. a3 {[%clk 0:01:59.5]} 21... Qxa3 {[%clk 0:02:39.8]} 22.
Nb5 {[%clk 0:01:57.4]} 22... Qb4 {[%clk 0:01:48.8]} 23. Nxa7 {[%clk 0:01:56.3]}
23... Rc3 {[%clk 0:01:46.4]} 24. Bxc3 {[%clk 0:00:24.5]} 24... Rxc3 {[%clk
0:01:44.8]} 25. Re3 {[%clk 0:00:25]} 25... Rxc2 {[%clk 0:01:43.6]} 26. h4 {[%clk
0:00:22.8]} 26... Ng4 {[%clk 0:01:41.9]} 27. Re2 {[%clk 0:00:21.8]} 27... Rc3
{[%clk 0:01:42.2]} 28. Rd3 {[%clk 0:00:20.3]} 28... Rc1+ {[%clk 0:01:40.4]} 0-1

[Event "*** SCC Grand Prix: Titled Tuesday Blitz"]
[Site "Chess.com"]
[Date "2020.09.29"]
[Round "5"]
[White "Sychev_Klementy"]
[Black "awesomevishesh"]
[Result "1-0"]
[WhiteElo "2878"]
[BlackElo "2432"]
[TimeControl "180+1"]
[EndTime "10:53:12 PDT"]
[Termination "Sychev_Klementy won by checkmate"]

1. e4 {[%clk 0:03:00.9]} 1... c5 {[%clk 0:03:00]} 2. Nf3 {[%clk 0:03:00.5]} 2...
d6 {[%clk 0:03:00.4]} 3. d4 {[%clk 0:02:57.4]} 3... cxd4 {[%clk 0:03:01.3]} 4.
Nxd4 {[%clk 0:02:55.3]} 4... Nf6 {[%clk 0:03:01.5]} 5. Nc3 {[%clk 0:02:55.3]}
5... a6 {[%clk 0:03:01.9]} 6. Bg5 {[%clk 0:02:52.9]} 6... e6 {[%clk 0:03:01.9]}
7. f4 {[%clk 0:02:51.6]} 7... h6 {[%clk 0:03:01.9]} 8. Bh4 {[%clk 0:02:50.9]}
8... Qb6 {[%clk 0:03:01.4]} 9. Qd2 {[%clk 0:02:46.8]} 9... Qxb2 {[%clk
0:02:59.9]} 10. Rb1 {[%clk 0:02:45.3]} 10... Qa3 {[%clk 0:02:59.8]} 11. Be2
{[%clk 0:02:38.1]} 11... Be7 {[%clk 0:02:43.5]} 12. O-O {[%clk 0:02:34.6]} 12...
Nbd7 {[%clk 0:02:38.4]} 13. f5 {[%clk 0:02:28.6]} 13... Ne5 {[%clk 0:02:35.5]}
14. fxe6 {[%clk 0:02:25.4]} 14... fxe6 {[%clk 0:02:29]} 15. Bxf6 {[%clk
0:02:24.5]} 15... Bxf6 {[%clk 0:02:11.9]} 16. Bh5+ {[%clk 0:02:23.9]} 16... Ke7
{[%clk 0:01:50.4]} 17. Nxe6 {[%clk 0:02:02.2]} 17... Kxe6 {[%clk 0:01:26.1]} 18.
Qd5+ {[%clk 0:01:54.9]} 18... Ke7 {[%clk 0:01:25.7]} 19. Rxb7+ {[%clk
0:01:54.5]} 19... Bxb7 {[%clk 0:01:10.7]} 20. Qxb7+ {[%clk 0:01:55.4]} 20... Ke6
{[%clk 0:01:05.5]} 21. Nd5 {[%clk 0:01:51.3]} 21... Qc5+ {[%clk 0:00:28.5]} 22.
Kh1 {[%clk 0:01:50.2]} 22... Nc4 {[%clk 0:00:05]} 23. Rxf6+ {[%clk 0:01:44.4]}
23... gxf6 {[%clk 0:00:04.3]} 24. Qe7# {[%clk 0:01:43.5]} 1-0

[Event "*** SCC Grand Prix: Titled Tuesday Blitz"]
[Site "Chess.com"]
[Date "2020.09.29"]
[Round "5"]
[White "maximnovik"]
[Black "PlotnikovPavel"]
[Result "1-0"]
[WhiteElo "2523"]
[BlackElo "2364"]
[TimeControl "180+1"]
[EndTime "10:53:13 PDT"]
[Termination "maximnovik won by checkmate"]

1. d4 {[%clk 0:03:00.9]} 1... d5 {[%clk 0:02:57.3]} 2. c4 {[%clk 0:03:00.1]}
2... dxc4 {[%clk 0:02:57.2]} 3. e4 {[%clk 0:02:58.7]} 3... e5 {[%clk 0:02:56.4]}
4. Nf3 {[%clk 0:02:59.2]} 4... exd4 {[%clk 0:02:52.4]} 5. Bxc4 {[%clk
0:02:59.6]} 5... Nc6 {[%clk 0:02:51.1]} 6. O-O {[%clk 0:02:57.9]} 6... Be6
{[%clk 0:02:44.5]} 7. Bxe6 {[%clk 0:02:57]} 7... fxe6 {[%clk 0:02:44.5]} 8. Qb3
{[%clk 0:02:57.4]} 8... Qd7 {[%clk 0:02:44.8]} 9. Qxb7 {[%clk 0:02:57.2]} 9...
Rb8 {[%clk 0:02:45.2]} 10. Qa6 {[%clk 0:02:57.2]} 10... Nf6 {[%clk 0:02:38.2]}
11. Nbd2 {[%clk 0:02:56.3]} 11... Bd6 {[%clk 0:02:35.4]} 12. b3 {[%clk 0:02:47]}
12... O-O {[%clk 0:02:34]} 13. Ba3 {[%clk 0:02:37.3]} 13... Bxa3 {[%clk
0:02:19.2]} 14. Qxa3 {[%clk 0:02:36.3]} 14... e5 {[%clk 0:02:13.3]} 15. Rac1
{[%clk 0:02:32.4]} 15... Nh5 {[%clk 0:02:07.4]} 16. Qa4 {[%clk 0:02:29.2]} 16...
Rb6 {[%clk 0:02:01.1]} 17. Nc4 {[%clk 0:02:13.2]} 17... Rb4 {[%clk 0:01:47.1]}
18. Ncxe5 {[%clk 0:02:01.7]} 18... Nxe5 {[%clk 0:01:42]} 19. Nxe5 {[%clk
0:02:00.1]} 19... Qe7 {[%clk 0:01:42.2]} 20. Nc6 {[%clk 0:01:54.4]} 20... Qg5
{[%clk 0:01:36.9]} 21. Qxb4 {[%clk 0:01:47.9]} 21... Nf4 {[%clk 0:01:36.6]} 22.
g3 {[%clk 0:01:31.8]} 22... Qg4 {[%clk 0:01:18.3]} 23. Qc4+ {[%clk 0:01:18.2]}
23... Kh8 {[%clk 0:01:16.6]} 24. f3 {[%clk 0:01:16]} 24... Qh3 {[%clk
0:01:01.8]} 25. Rf2 {[%clk 0:01:14.2]} 25... Rf6 {[%clk 0:01:00.2]} 26. Ne5
{[%clk 0:01:04]} 26... Rh6 {[%clk 0:00:55.5]} 27. Nf7+ {[%clk 0:01:02.4]} 27...
Kg8 {[%clk 0:00:55.4]} 28. Nxh6+ {[%clk 0:01:02.4]} 28... Kh8 {[%clk 0:00:56.3]}
29. Qg8# {[%clk 0:01:00.8]} 1-0